Workbook

Sheet Заставка
A1: 5
G14: =H14/$G$11 -> 
A70: 62CA5D80INTERNET
A75: qaz | R75: qaz
A77: 62CA5D80INTERNET | P77: 0
C97: 0
A100: 3 | B100: 4 | AC100: 1

Sheet Регр
C4: #п/п | D4: Y | E4: X1 | F4: X2
C5: 1 | D5: 1.688 | E5: 1
C6: 2 | D6: 2.487 | E6: 2
C7: 3 | D7: 2.55 | E7: 3
C8: 4 | D8: 4.125 | E8: 4
C9: 5 | D9: 3.837 | E9: 5
C10: 6 | D10: 4.451 | E10: 6
C11: 7 | D11: 4.713 | E11: 7
C12: 8 | D12: 6.906 | E12: 8
C13: 9 | D13: 7.48 | E13: 9
C14: 10 | D14: 7.181 | E14: 10

Sheet Ручн
E1: срХ | F1: СрУ | G1: ="r= "&TEXT($H$16/SQRT($I$16*$J$16),"0,000") -> r= 0,966 | H1: b= | I1: =($A$15*$E$16-$C$16*$B$16)/($A$15*$D$16-$C$16*$C$16) -> 0.6578545455 | J1: Ftabl= | K1: =FINV(0.05,1,10-2) -> 5.317655072 | L1: t_tabl= | M1: =TINV(0.05,10-2) -> 2.306004135
E2: =AVERAGE($C$6:$C$15) -> 5.5 | F2: =AVERAGE($B$6:$B$15) -> 4.5418 | H2: a= | I2: =($B$16-$I$1*C16)/$A$15 -> 0.9236 | J2: F= | K2: =($F$3/(1-$F$3))*($A$15-2) -> 113.0866386 | L2: tnabl(sqrF) | M2: =SQRT($K$2) -> 10.63422017
E3: R2= | F3: 0.9339316039 | H3: A_ | I3: =AVERAGE(M6:M15) -> 10.36245988
A4: # | B4: Y | C4: X | D4: Xкв | E4: XY | F4: X-X_ | G4: Y-Y_ | H4: (X-X_)*(Y-Y_) | I4: (X-X_)2 | J4: (Y-Y_)2 | K4: Y* | L4: |Y-Y*| | M4: A | N4: (Y-Y*)2
A5: 1 | B5: 2 | C5: 3 | D5: 4 | E5: 5 | F5: 6 | G5: 7 | H5: 8 | I5: 9 | J5: 10 | K5: 11 | L5: 12 | M5: 13 | N5: 14
A6: 1 | B6: 1.688 | C6: 1 | D6: =C6*C6 -> 1 | E6: =B6*C6 -> 1.688 | F6: =C6-$E$2 -> -4.5 | G6: =B6-$F$2 -> -2.8538 | H6: =F6*G6 -> 12.8421 | I6: =F6*F6 -> 20.25 | J6: =G6*G6 -> 8.14417444 | K6: =$I$2+$I$1*C6 -> 1.581454545 | L6: =ABS(B6-K6) -> 0.1065454545 | M6: =L6/B6*100 -> 6.311934511 | N6: =POWER(L6,2) -> 0.01135193388
A7: 2 | B7: 2.487 | C7: 2 | D7: =C7*C7 -> 4 | E7: =B7*C7 -> 4.974 | F7: =C7-$E$2 -> -3.5 | G7: =B7-$F$2 -> -2.0548 | H7: =F7*G7 -> 7.1918 | I7: =F7*F7 -> 12.25 | J7: =G7*G7 -> 4.22220304 | K7: =$I$2+$I$1*C7 -> 2.239309091 | L7: =ABS(B7-K7) -> 0.2476909091 | M7: =L7/B7*100 -> 9.959425376 | N7: =POWER(L7,2) -> 0.06135078645
A8: 3 | B8: 2.55 | C8: 3 | D8: 9 | E8: 7.65 | F8: -2.5 | G8: -1.9918 | H8: 4.9795 | I8: 6.25 | J8: 3.96726724 | K8: 2.897163636 | L8: 0.3471636364 | M8: 13.61426025 | N8: 0.1205225904
A9: 4 | B9: 4.125 | C9: 4 | D9: 16 | E9: 16.5 | F9: -1.5 | G9: -0.4168 | H9: 0.6252 | I9: 2.25 | J9: 0.17372224 | K9: 3.555018182 | L9: 0.5699818182 | M9: 13.81774105 | N9: 0.3248792731
A10: 5 | B10: 3.837 | C10: 5 | D10: 25 | E10: 19.185 | F10: -0.5 | G10: -0.7048 | H10: 0.3524 | I10: 0.25 | J10: 0.49674304 | K10: 4.212872727 | L10: 0.3758727273 | M10: 9.796005402 | N10: 0.1412803071
A11: 6 | B11: 4.451 | C11: 6 | D11: 36 | E11: 26.706 | F11: 0.5 | G11: -0.0908 | H11: -0.0454 | I11: 0.25 | J11: 0.00824464 | K11: 4.870727273 | L11: 0.4197272727 | M11: 9.429954454 | N11: 0.1761709835
A12: 7 | B12: 4.713 | C12: 7 | D12: 49 | E12: 32.991 | F12: 1.5 | G12: 0.1712 | H12: 0.2568 | I12: 2.25 | J12: 0.02930944 | K12: 5.528581818 | L12: 0.8155818182 | M12: 17.30493991 | N12: 0.6651737021
A13: 8 | B13: 6.906 | C13: 8 | D13: 64 | E13: 55.248 | F13: 2.5 | G13: 2.3642 | H13: 5.9105 | I13: 6.25 | J13: 5.58944164 | K13: 6.186436364 | L13: 0.7195636364 | M13: 10.41939815 | N13: 0.5177718268
A14: 9 | B14: 7.48 | C14: 9 | D14: 81 | E14: 67.32 | F14: 3.5 | G14: 2.9382 | H14: 10.2837 | I14: 12.25 | J14: 8.63301924 | K14: 6.844290909 | L14: 0.6357090909 | M14: 8.498784638 | N14: 0.4041260483
A15: 10 | B15: 7.181 | C15: 10 | D15: 100 | E15: 71.81 | F15: 4.5 | G15: 2.6392 | H15: 11.8764 | I15: 20.25 | J15: 6.96537664 | K15: 7.502145455 | L15: 0.3211454545 | M15: 4.472155056 | N15: 0.103134403
B16: =SUM(B$6:B$15 ) -> 45.418 | C16: =SUM(C$6:C$15 ) -> 55 | D16: 385 | E16: 304.072 | F16: 0 | G16: 0 | H16: 54.273 | I16: 82.5 | J16: 38.2295016 | K16: 45.418 | L16: 4.558981818 | M16: 103.6245988 | N16: 2.525761855

Sheet Резт
A4: СРТ фактілі параметрлері
A5: =LINEST(Регр!$D$5:$D$14,Регр!$E$5:$E$14,TRUE,TRUE) -> 0.6578545455 | B5: 0.9236
A6: 0.06186203926 | B6: 0.3838438591
A7: 0.9339316039 | B7: 0.5618898752
A8: 113.0866386 | B8: 8
A9: 35.70373975 | B9: 2.525761855
A11: =CORREL(Регр!$D$5:$D$14,Регр!$E$5:$E$14) -> 0.9664013679
A12: =COVAR(Регр!$D$5:$D$14,Регр!$E$5:$E$14) -> 5.4273
A13: =STEYX(Регр!$D$5:$D$14,Регр!$E$5:$E$14) -> 0.5618898752
A14: =FTEST(Регр!$D$5:$D$14,Регр!$E$5:$E$14) -> 0.2673269789
